bitfinex/quotes_BTCUSD_20250403
["timestamp","ask_amount","ask_price","bid_price","bid_amount"]
[1743687971434,0.243078,82278.0,82274.0,0.17]
[1743687971647,0.243086,82276.0,82274.0,0.17]
[1743687971848,0.243112,82267.0,82263.0,0.17]
[1743687972051,0.02,82267.0,82264.0,0.1289106]
[1743687972254,0.02,82267.0,82266.0,0.255268]
[1743687972467,0.02,82267.0,82266.0,0.3730133]
[1743687972799,0.012152,82285.0,82266.0,0.3730133]
[1743687972800,0.012147,82320.0,82288.0,0.2552]
[1743687973004,0.242967,82316.0,82288.0,0.94519645]
[1743687973234,0.242945,82323.0,82302.0,0.255157]
[1743687973235,0.242946,82323.0,82302.0,0.255157]
[1743687973453,0.0178,82303.0,82302.0,0.38645345]
[1743687973775,0.01793874,82303.0,82302.0,0.3902497]
[1743687973977,0.01793874,82303.0,82302.0,0.1472427]
[1743687974177,0.01793874,82303.0,82302.0,0.00379625]
[1743687974606,0.01793874,82303.0,82302.0,0.13270185]
[1743687974810,0.26094274,82303.0,82302.0,0.00379625]
[1743687975021,0.01793874,82303.0,82298.0,0.24681225]
[1743687975310,0.01793874,82303.0,82302.0,0.255157]
[1743687975515,0.01793874,82303.0,82302.0,0.1167556]
[1743687975724,0.01793874,82303.0,82302.0,0.1289056]
[1743687975946,0.00793874,82303.0,82302.0,0.49087607]
[1743687976161,7.4e-07,82305.0,82304.0,0.01715]
[1743687976364,0.242873,82348.0,82304.0,0.01715]
[1743687976365,0.0003368,82358.0,82333.0,0.59506]
[1743687976565,0.03047521,82334.0,82333.0,0.89627645]
[1743687977418,0.27338821,82334.0,82333.0,0.16992]
[1743687977628,0.03047521,82334.0,82333.0,0.31435635]
[1743687977734,0.03047521,82334.0,82333.0,0.2876705]
[1743687977947,0.03047521,82334.0,82333.0,0.1177505]
[1743687978150,0.03047521,82334.0,82333.0,0.38978036]
[1743687978359,0.00047521,82334.0,82333.0,0.38735135]
[1743687978567,0.00047521,82334.0,82333.0,0.72735135]
[1743687978973,2.1e-07,82334.0,82333.0,0.72735135]
[1743687979806,2.1e-07,82334.0,82333.0,0.38735135]
[1743687980255,2.1e-07,82334.0,82333.0,0.01553575]
[1743687980425,0.02000021,82334.0,82333.0,0.0010349]
[1743687980660,0.26291321,82334.0,82333.0,0.0010349]
[1743687980995,0.73181381,82334.0,82333.0,0.0010349]
[1743687981195,0.61505821,82334.0,82333.0,4e-05]
[1743687981429,0.61432313,82334.0,82333.0,4e-05]
[1743687981850,0.01926513,82334.0,82333.0,4e-05]
[1743687982223,0.03141013,82334.0,82333.0,8e-05]
[1743687982436,0.01926513,82334.0,82333.0,8e-05]
[1743687982639,0.01926513,82334.0,82333.0,0.3718956]
[1743687982767,0.0003368,82358.0,82348.0,0.255014]
[1743687982962,0.0003368,82358.0,82336.0,0.012145]
[1743687982963,0.124,82349.0,82336.0,0.012145]
[1743687983367,0.124,82349.0,82338.0,0.242899]
[1743687983368,0.242885,82344.0,82338.0,0.242899]
[1743687983583,0.242902,82338.0,82333.0,8e-05]
[1743687983778,0.03,82338.0,82334.0,0.012145]
[1743687983988,0.03,82338.0,82337.0,0.012145]
[1743687984250,0.03,82338.0,82337.0,0.1167556]
[1743687984525,0.242912,82335.0,82333.0,8e-05]
[1743687984822,0.012145,82334.0,82333.0,8e-05]
[1743687984962,0.28,82334.0,82333.0,8e-05]
[1743687985592,0.292145,82334.0,82333.0,8e-05]
[1743687986324,0.7489006,82334.0,82333.0,8e-05]
[1743687986831,0.242955,82320.0,82315.0,0.012148]
[1743687987043,0.25,82320.0,82308.0,0.012149]
[1743687987178,0.242989,82308.0,82307.0,0.00013861]
[1743687987379,0.26,82308.0,82307.0,0.00013861]
[1743687987988,0.26,82308.0,82307.0,0.12904321]
[1743687988308,0.26,82308.0,82307.0,0.14358406]
[1743687988468,0.242928,82329.0,82324.0,0.012147]
[1743687988668,0.242928,82329.0,82325.0,0.242936]
[1743687988669,0.11,82329.0,82325.0,0.242936]
[1743687988891,0.11,82329.0,82328.0,0.012146]
[1743687989085,0.11,82329.0,82328.0,0.14344245]
[1743687989290,0.24289,82342.0,82336.0,0.012145]
[1743687989512,0.0003364,82334.0,82327.0,0.242931]
[1743687989737,0.0303364,82334.0,82323.0,0.012147]
[1743687989973,0.242925,82330.0,82326.0,0.242934]
[1743687990198,0.282925,82330.0,82320.0,0.255101]
[1743687990448,0.282925,82330.0,82325.0,0.012146]
[1743687990653,0.04,82330.0,82326.0,0.255076]
[1743687990992,0.04,82330.0,82325.0,0.012146]
[1743687991198,0.04,82330.0,82326.0,0.242934]
[1743687991404,0.04,82330.0,82325.0,0.012146]
[1743687991608,0.242942,82325.0,82323.0,4e-05]
[1743687991805,0.472942,82325.0,82323.0,4e-05]
[1743687992592,0.23,82325.0,82324.0,0.255089]
[1743687992794,0.47294,82325.0,82323.0,4e-05]
[1743687993004,0.23,82325.0,82323.0,4e-05]
[1743687993409,0.47294,82325.0,82323.0,4e-05]
[1743687993606,0.23,82325.0,82323.0,4e-05]
[1743687994042,0.472939,82325.0,82323.0,4e-05]
[1743687994237,0.23,82325.0,82323.0,4e-05]
[1743687994586,0.23,82325.0,82324.0,0.1289026]
[1743687994731,0.23,82325.0,82324.0,0.14344345]
[1743687994937,0.0003364,82334.0,82330.0,0.255068]
[1743687995140,0.0203364,82334.0,82333.0,0.012145]
[1743687995897,0.242917,82333.0,82331.0,0.00379625]
[1743687996098,0.012145,82332.0,82331.0,0.00379625]
[1743687996304,0.26,82332.0,82331.0,0.00379625]
[1743687996875,0.272145,82332.0,82331.0,0.00379625]
[1743687997194,0.26,82332.0,82331.0,0.00379625]
[1743687997398,0.272145,82332.0,82331.0,0.00379625]
[1743687997604,0.7289006,82332.0,82331.0,0.00379625]
[1743687997784,0.612145,82332.0,82331.0,0.00379625]
[1743687998367,0.7289006,82332.0,82331.0,0.00379625]
[1743687999364,0.26,82332.0,82323.0,0.24541352]
[1743687999590,0.242941,82325.0,82323.0,4e-05]
[1743687999742,0.495087,82325.0,82323.0,4e-05]
[1743687999945,0.4689026,82324.0,82323.0,4e-05]
[1743688000145,0.595098,82321.0,82320.0,6.1e-07]
[1743688000411,0.595098,82321.0,82304.0,1.6e-07]
[1743688000412,0.595147,82305.0,82304.0,1.6e-07]
[1743688000633,1.02943109,82305.0,82304.0,1.6e-07]
[1743688000858,1.02943109,82305.0,82265.0,0.012155]
[1743688000859,0.243121,82264.0,82259.0,0.012156]
[1743688001061,0.243121,82264.0,82257.0,0.412859]
[1743688001062,0.03,82264.0,82261.0,0.1281614]
[1743688001292,0.03,82264.0,82261.0,0.255282]
[1743688001508,0.243124,82263.0,82261.0,0.00046269]
[1743688001712,0.012156,82262.0,82261.0,0.00046269]
[1743688001920,0.282156,82262.0,82261.0,0.00046269]
[1743688002134,0.27,82262.0,82261.0,0.00046269]
[1743688002334,0.525281,82262.0,82261.0,0.00046269]
[1743688002722,0.9820366,82262.0,82261.0,0.00046269]
[1743688002925,0.9820366,82262.0,82243.0,0.10817384]
[1743688002926,0.255336,82244.0,82243.0,0.10817384]
[1743688003323,0.27,82244.0,82243.0,0.10718054]
[1743688003524,0.27,82244.0,82243.0,0.23609514]
[1743688003703,0.27,82244.0,82243.0,0.23595545]
[1743688004082,0.00046146,82262.0,82261.0,0.255284]
[1743688004264,0.09046146,82262.0,82261.0,0.3720396]
[1743688004873,0.33358746,82262.0,82260.0,0.16976]
[1743688005050,0.09046146,82262.0,82260.0,0.16976]
[1743688005454,0.09046146,82262.0,82260.0,0.412889]
[1743688005701,0.09046146,82262.0,82260.0,0.16976]
[1743688005958,0.243128,82261.0,82260.0,0.16976]
[1743688006172,0.26,82261.0,82260.0,0.16976]
[1743688006561,0.26,82261.0,82260.0,0.2986716]
[1743688006766,0.25996,82261.0,82260.0,0.2986716]
[1743688006915,0.25996,82261.0,82260.0,0.012156]
[1743688007131,0.25996,82261.0,82260.0,0.1289116]
[1743688007348,0.25996,82261.0,82260.0,0.14345245]
[1743688007713,0.25996,82261.0,82260.0,0.14444225]
[1743688008115,0.25996,82261.0,82260.0,0.0131458]
[1743688008311,0.25996,82261.0,82260.0,0.0009898]
[1743688008769,0.243131,82260.0,82250.0,0.012158]
[1743688008978,0.21,82260.0,82255.0,0.255301]
[1743688009514,0.20996,82260.0,82259.0,0.25529]
[1743688009719,0.00046146,82262.0,82261.0,0.600284]
[1743688009720,4.6e-07,82262.0,82261.0,0.600284]
[1743688009993,0.012152,82290.0,82285.0,0.01454085]
[1743688010204,0.13,82290.0,82287.0,0.243051]
[1743688010424,0.13,82290.0,82289.0,0.012152]
[1743688010628,0.13,82290.0,82289.0,0.14587864]
[1743688010834,0.0003362,82333.0,82313.0,0.242973]
[1743688010835,0.012147,82324.0,82313.0,0.242973]
[1743688010988,0.242956,82320.0,82314.0,0.00242952]
[1743688011197,0.392956,82320.0,82312.0,0.255125]
[1743688011414,0.242958,82319.0,82312.0,0.255125]
[1743688011618,0.24,82319.0,82306.0,0.255144]
[1743688011825,0.24,82319.0,82316.0,0.242962]
[1743688012052,0.24,82319.0,82318.0,0.012148]
[1743688012264,0.24,82319.0,82318.0,0.14344445]
[1743688012477,0.0003364,82334.0,82332.0,0.26960385]
[1743688012716,0.01047474,82333.0,82332.0,0.55611945]
[1743688012931,0.01047474,82333.0,82332.0,0.55711445]
[1743688013499,0.01047474,82333.0,82332.0,0.31419645]
[1743688013935,0.01047474,82333.0,82332.0,0.55711445]
[1743688015392,0.01047474,82333.0,82332.0,0.2996556]
[1743688016566,0.01047474,82333.0,82332.0,0.31419645]
[1743688017333,0.00047474,82333.0,82332.0,0.31419645]
[1743688017937,1.4e-07,82334.0,82333.0,0.59506]
[1743688018173,1.4e-07,82334.0,82333.0,0.72635645]
[1743688018687,0.01000014,82334.0,82333.0,0.3718156]
[1743688019194,0.01000014,82334.0,82333.0,0.38635645]
[1743688020617,0.01000014,82334.0,82333.0,0.1167556]
[1743688020833,0.01000014,82334.0,82333.0,0.38635645]
[1743688021035,0.26505814,82334.0,82332.0,0.000995]
[1743688021263,0.01000014,82334.0,82329.0,0.012146]
[1743688021471,0.012146,82327.0,82320.0,0.0009904]
[1743688021629,0.242936,82326.0,82317.0,0.24310054]
[1743688021986,0.04,82326.0,82325.0,0.26962585]
[1743688022360,0.04,82326.0,82314.0,0.012148]
[1743688022480,0.04,82326.0,82320.0,0.012147]
[1743688022686,0.012147,82321.0,82317.0,0.00013854]
[1743688022900,0.595108,82318.0,82317.0,0.00013854]
[1743688023071,0.9418636,82318.0,82317.0,5.4e-07]
[1743688023273,0.59512,82314.0,82313.0,7.4e-07]
[1743688023516,0.9418756,82314.0,82313.0,7.4e-07]
[1743688023934,0.82512,82314.0,82313.0,7.4e-07]
[1743688024646,0.9418756,82314.0,82313.0,7.4e-07]
[1743688025077,0.82512,82314.0,82313.0,7.4e-07]
[1743688025491,0.472972,82314.0,82313.0,7.4e-07]
[1743688025698,0.47301816,82314.0,82313.0,7.4e-07]
[1743688025907,0.23004616,82314.0,82313.0,7.4e-07]
[1743688026110,0.23004616,82314.0,82313.0,0.12890434]
[1743688026321,0.23004616,82314.0,82313.0,0.14587471]
[1743688026448,0.23004616,82314.0,82313.0,0.14344519]
[1743688026888,4.616e-05,82314.0,82313.0,0.14344519]
[1743688027090,0.01004616,82314.0,82313.0,0.13129719]
[1743688027415,0.02219416,82314.0,82313.0,0.01454159]
[1743688027535,0.02219416,82314.0,82313.0,7.4e-07]
[1743688027913,0.47894976,82314.0,82313.0,7.4e-07]
[1743688028254,0.36219416,82314.0,82313.0,7.4e-07]
[1743688028488,0.243086,82276.0,82269.0,0.1696]
[1743688028702,0.01,82276.0,82275.0,0.25524]
[1743688028885,0.01,82276.0,82275.0,0.1167556]
[1743688029064,0.01,82276.0,82275.0,0.1289096]
[1743688029414,0.01,82276.0,82274.0,0.255243]
[1743688029415,0.01,82276.0,82263.0,0.012156]
[1743688029619,0.01,82276.0,82271.0,0.012154]
[1743688029873,0.01004613,82276.0,82271.0,0.11918622]
[1743688030082,0.01004613,82276.0,82272.0,0.255248]
[1743688030301,0.01004613,82276.0,82275.0,0.012154]
[1743688030498,0.01004613,82276.0,82275.0,0.13133985]
[1743688030651,0.01004613,82276.0,82275.0,0.14345045]
[1743688030857,4.613e-05,82276.0,82275.0,0.14588072]
[1743688031268,4.613e-05,82276.0,82275.0,0.14687222]
[1743688031694,4.613e-05,82276.0,82275.0,0.14444195]
[1743688031923,0.01004613,82276.0,82275.0,0.13233134]
[1743688032310,0.01004613,82276.0,82275.0,0.1299011]
[1743688032580,0.26528413,82276.0,82275.0,0.0009915]
[1743688032814,0.26528413,82276.0,82260.0,0.0001684]
[1743688032815,0.012155,82269.0,82260.0,0.0001684]
[1743688033042,0.243128,82262.0,82260.0,0.0001684]
[1743688033240,0.293128,82262.0,82260.0,0.0001684]
[1743688034110,0.012156,82261.0,82260.0,0.0001684]
[1743688034338,0.012156,82261.0,82260.0,4e-07]
[1743688034339,0.83565561,82261.0,82260.0,4e-07]
[1743688034557,0.255346,82241.0,82217.0,0.0037988]
[1743688034771,0.495346,82241.0,82217.0,0.0037988]
[1743688034960,0.495346,82241.0,82220.0,0.012162]
[1743688035168,0.495346,82241.0,82223.0,0.243239]
[1743688035402,0.495346,82241.0,82219.0,0.012162]
[1743688035403,0.495346,82241.0,82217.0,0.0037988]
[1743688035608,0.835346,82241.0,82217.0,0.0037988]
[1743688035820,0.835346,82241.0,82218.0,0.00243224]
[1743688036030,0.4832331,82241.0,82226.0,0.012161]
[1743688036251,0.8353921,82241.0,82216.0,0.10718054]
[1743688036457,0.8353921,82241.0,82223.0,0.0009859]
[1743688036669,0.8353921,82241.0,82223.0,0.0131479]
[1743688036876,0.2400461,82241.0,82234.0,0.243206]
[1743688037084,0.2400461,82241.0,82228.0,0.012161]
[1743688037085,0.2400461,82241.0,82240.0,0.3722728]
[1743688037290,0.2400461,82241.0,82240.0,0.1169238]
[1743688037495,0.2400461,82241.0,82240.0,0.1290828]
[1743688037706,0.2400461,82241.0,82240.0,0.14605533]
[1743688037903,0.2400461,82241.0,82240.0,0.14362365]
[1743688038803,0.2400461,82241.0,82240.0,0.38681365]
[1743688039671,0.012153,82284.0,82244.0,0.345]
[1743688039896,0.012153,82284.0,82240.0,0.13146465]
[1743688039897,0.012155,82267.0,82256.0,0.012157]
[1743688040110,0.243129,82261.0,82256.0,0.1167556]
[1743688040335,0.012154,82276.0,82268.0,0.012155]
[1743688040539,0.012154,82276.0,82259.0,0.243131]
[1743688040540,0.012156,82259.0,82245.0,0.012158]
[1743688040744,0.42055623,82290.0,82236.0,0.0001682]
[1743688040745,0.012154,82271.0,82262.0,0.25528]
[1743688040947,0.012154,82271.0,82254.0,0.243147]
[1743688040948,0.243126,82262.0,82256.0,0.25768385]
[1743688041181,0.012157,82252.0,82240.0,0.0123672]
[1743688041397,0.03,82252.0,82244.0,0.243178]
[1743688041561,0.03,82252.0,82245.0,0.255332]
[1743688041765,0.243166,82249.0,82244.0,0.1167556]
[1743688041979,0.04,82249.0,82244.0,0.1167556]
[1743688042111,0.04,82249.0,82245.0,0.243173]
[1743688042314,0.04,82249.0,82244.0,0.1167556]
[1743688042514,0.04,82249.0,82240.0,0.01282866]
[1743688042748,0.243173,82246.0,82240.0,0.01282866]
[1743688042970,0.255346,82241.0,82240.0,0.00066966]
[1743688043143,0.03,82241.0,82240.0,0.00066966]
[1743688043360,0.03,82241.0,82240.0,0.12958426]
[1743688043563,0.03,82241.0,82240.0,0.14412511]
[1743688043721,0.24309,82274.0,82262.0,0.243124]
[1743688043945,0.243117,82267.0,82260.0,0.243131]
[1743688044139,0.383117,82267.0,82260.0,0.255287]
[1743688044341,0.383117,82267.0,82250.0,0.012158]
[1743688044342,0.012156,82262.0,82250.0,0.012158]
[1743688044582,0.012156,82262.0,82236.0,0.0001682]
[1743688044583,0.04,82262.0,82256.0,0.012157]
[1743688044784,0.04,82262.0,82260.0,0.255287]
[1743688045019,0.04,82262.0,82253.0,0.24315]
[1743688045216,0.243128,82261.0,82257.0,0.243139]
[1743688045424,0.04,82261.0,82258.0,0.36232278]
[1743688045595,0.052156,82261.0,82251.0,0.012157]
[1743688045795,0.04,82261.0,82246.0,0.243171]
[1743688045997,0.04,82261.0,82258.0,0.243135]
[1743688046198,0.012156,82258.0,82247.0,0.1167556]
[1743688046531,0.012156,82258.0,82240.0,0.00066966]
[1743688046532,0.012157,82252.0,82240.0,0.00066966]
[1743688046696,0.243171,82247.0,82241.0,0.1167556]
[1743688046896,0.273171,82247.0,82241.0,0.3599416]
[1743688047101,0.03,82247.0,82241.0,0.1167556]
[1743688047306,0.255346,82241.0,82240.0,0.00066966]
[1743688047505,0.483187,82241.0,82240.0,0.00066966]
[1743688048031,0.9521016,82241.0,82240.0,0.00066966]
[1743688048655,0.595377,82231.0,82224.0,0.0001682]
[1743688048871,0.525377,82231.0,82230.0,0.00030694]
[1743688049226,0.9821326,82231.0,82230.0,0.00030694]
[1743688049680,0.865377,82231.0,82230.0,0.00030694]
[1743688049870,0.27,82231.0,82230.0,0.00030694]
[1743688050654,0.28216,82231.0,82230.0,0.00030694]
[1743688050868,0.27,82231.0,82230.0,0.00030694]
[1743688051325,0.27,82231.0,82230.0,0.12926354]
[1743688051557,0.27,82231.0,82230.0,0.13263139]
[1743688051934,0.28216,82231.0,82230.0,0.00133494]
[1743688052074,0.28216,82231.0,82230.0,0.00034694]
[1743688052285,0.7389156,82231.0,82230.0,9.4e-07]
[1743688052577,0.7389156,82231.0,82224.0,1.4e-07]
[1743688052578,0.595396,82225.0,82224.0,1.4e-07]
[1743688052817,0.9521516,82225.0,82224.0,0.00013889]
[1743688053049,0.9521516,82225.0,82191.0,0.012166]
[1743688053050,0.243332,82192.0,82177.0,0.0001682]
[1743688053289,0.273333,82192.0,82190.0,4.64e-05]
[1743688053512,0.03,82192.0,82190.0,4.64e-05]
[1743688053737,0.273333,82192.0,82190.0,4.64e-05]
[1743688053967,0.03,82192.0,82191.0,0.1289216]
[1743688054201,0.03,82192.0,82191.0,0.14346245]
[1743688054649,0.03,82192.0,82191.0,0.14589552]
[1743688054866,0.03,82192.0,82191.0,0.14346245]
[1743688055071,0.03,82192.0,82190.0,4.64e-05]
[1743688055682,0.03,82192.0,82190.0,0.0122124]
[1743688055937,0.03,82192.0,82191.0,0.13129645]
[1743688056138,0.03,82192.0,82190.0,4.64e-05]
[1743688056380,0.03,82192.0,82190.0,0.2433814]
[1743688056559,0.273335,82192.0,82190.0,4.64e-05]
[1743688056732,0.255501,82191.0,82190.0,4.64e-05]
[1743688056912,0.435501,82191.0,82190.0,4.64e-05]
[1743688057113,0.18,82191.0,82190.0,4.64e-05]
[1743688057901,0.18,82191.0,82190.0,0.36014]
[1743688058239,0.18,82191.0,82190.0,4.64e-05]
[1743688058240,0.435501,82191.0,82190.0,4.64e-05]
[1743688058605,0.435501,82191.0,82190.0,8.64e-05]
[1743688059830,0.5522566,82191.0,82190.0,8.64e-05]
[1743688060309,0.435501,82191.0,82190.0,8.64e-05]
[1743688060826,0.5522566,82191.0,82190.0,8.64e-05]
[1743688061030,0.8922566,82191.0,82190.0,8.64e-05]
[1743688061367,0.435501,82191.0,82190.0,8.64e-05]
[1743688061582,0.5522566,82191.0,82190.0,8.64e-05]
[1743688062852,0.435501,82191.0,82190.0,8.64e-05]
[1743688063050,0.192166,82191.0,82190.0,8.64e-05]
[1743688063246,0.435501,82191.0,82190.0,8.64e-05]
[1743688063888,0.18,82191.0,82190.0,8.64e-05]
[1743688064308,0.435501,82191.0,82190.0,8.64e-05]
[1743688064936,0.5522566,82191.0,82190.0,8.64e-05]
[1743688065148,0.8922566,82191.0,82190.0,8.64e-05]
[1743688067193,0.8922566,82191.0,82190.0,4e-07]
[1743688067365,0.8922566,82191.0,82163.0,0.02]
[1743688067366,0.255585,82164.0,82163.0,0.02]
[1743688067722,0.64076389,82164.0,82163.0,0.02046163]
[1743688068636,0.98076389,82164.0,82163.0,6.3e-07]
[1743688068834,0.595604,82158.0,82157.0,8.3e-07]
[1743688069056,2.0132796,82158.0,82157.0,8.3e-07]
[1743688070080,1.544353,82158.0,82157.0,8.3e-07]
[1743688070226,1.313091,82158.0,82157.0,8.3e-07]
[1743688070429,1.30092,82158.0,82157.0,8.3e-07]
[1743688070630,1.30092,82158.0,82157.0,0.01217183]
[1743688070833,0.25,82158.0,82157.0,0.01217183]
[1743688071045,0.25,82158.0,82157.0,8.3e-07]
[1743688071310,0.25,82158.0,82157.0,0.01217183]
[1743688071804,0.25,82158.0,82157.0,0.01315353]
[1743688073520,0.25,82158.0,82157.0,0.00098253]
[1743688073725,0.262171,82158.0,82157.0,0.00098253]
[1743688073876,0.262171,82158.0,82157.0,8.3e-07]
[1743688074391,0.7189266,82158.0,82157.0,8.3e-07]
[1743688074794,0.9623596,82158.0,82157.0,8.3e-07]
[1743688074997,0.505604,82158.0,82157.0,8.3e-07]
[1743688075265,0.845604,82158.0,82157.0,8.3e-07]
[1743688075669,0.505604,82158.0,82157.0,8.3e-07]
[1743688076162,0.493433,82158.0,82157.0,8.3e-07]
[1743688076361,0.505604,82158.0,82157.0,8.3e-07]
[1743688076586,0.493433,82158.0,82157.0,8.3e-07]
[1743688077398,0.493433,82158.0,82157.0,0.24343683]
[1743688077399,0.25,82158.0,82157.0,0.24343683]
[1743688077600,0.25,82158.0,82157.0,8.3e-07]
[1743688077762,0.493433,82158.0,82157.0,8.3e-07]
[1743688077983,0.25,82158.0,82157.0,8.3e-07]
[1743688078402,0.505604,82158.0,82157.0,8.3e-07]
[1743688079051,0.25,82158.0,82157.0,8.3e-07]
[1743688080122,0.505604,82158.0,82157.0,8.3e-07]
[1743688080960,1.07910361,82158.0,82157.0,8.3e-07]
[1743688081164,0.9623596,82158.0,82157.0,8.3e-07]
[1743688081382,1.00000442,82158.0,82157.0,8.3e-07]
[1743688082391,1.00496442,82158.0,82157.0,8.3e-07]
[1743688082546,0.595654,82142.0,82127.0,8e-05]
[1743688082763,0.97847714,82142.0,82127.0,8e-05]
[1743688083165,0.86172154,82142.0,82127.0,8e-05]
[1743688083572,0.82407672,82142.0,82131.0,0.243511]
[1743688083797,0.23,82142.0,82141.0,0.2598253]
[1743688084000,0.242174,82142.0,82141.0,0.0041683]
[1743688084202,0.23,82142.0,82141.0,0.0041683]
[1743688084404,0.3589296,82142.0,82141.0,0.0041683]
[1743688085023,0.73660743,82142.0,82141.0,3e-07]
[1743688085178,0.255672,82136.0,82135.0,0.0002]
[1743688085382,0.87334983,82136.0,82135.0,0.0002]
[1743688085622,0.495672,82136.0,82135.0,0.0002]
[1743688085835,0.24,82136.0,82135.0,0.1291306]
[1743688086006,0.24,82136.0,82135.0,0.0002]
[1743688086463,0.24,82136.0,82135.0,0.1291306]
[1743688086676,0.24046163,82136.0,82135.0,0.14466095]
[1743688086875,0.24046163,82136.0,82135.0,0.13248595]
[1743688087011,0.24046163,82136.0,82135.0,0.0011895]
[1743688087212,0.24046163,82136.0,82135.0,0.0002]
[1743688087414,0.24046163,82136.0,82135.0,0.14367145]
[1743688087616,0.24046163,82136.0,82135.0,0.13149645]
[1743688087829,0.25263563,82136.0,82135.0,0.0002]
[1743688088042,0.24046163,82136.0,82135.0,0.0002]
[1743688088242,0.25263563,82136.0,82135.0,0.0002]
[1743688088892,0.74713001,82136.0,82135.0,0.0002]
[1743688089327,0.70939123,82136.0,82135.0,0.0002]
[1743688089530,0.74713037,82136.0,82135.0,0.0002]
[1743688089734,0.63037477,82136.0,82135.0,0.0002]
[1743688089940,0.29037477,82136.0,82135.0,0.0002]
[1743688090143,0.25263563,82136.0,82135.0,0.0002]
[1743688090629,0.29163563,82136.0,82135.0,0.0002]
[1743688090840,0.27946163,82136.0,82135.0,0.0002]
[1743688091257,0.05,82136.0,82135.0,0.0002]
[1743688091842,0.05,82136.0,82135.0,0.1291306]
[1743688092344,0.05,82136.0,82135.0,0.14610624]
[1743688092540,0.05,82136.0,82135.0,0.14610609]
[1743688092727,0.05,82136.0,82135.0,0.14367145]
[1743688093126,0.05,82136.0,82135.0,0.1291306]
[1743688093340,0.062174,82136.0,82135.0,0.0002]
[1743688094117,0.05,82136.0,82135.0,0.1291306]
[1743688094312,0.05,82136.0,82135.0,0.14367145]
[1743688094685,0.05,82136.0,82135.0,0.0002]
[1743688094884,0.062174,82136.0,82135.0,0.0002]
[1743688095550,0.05,82136.0,82135.0,0.243701]
[1743688095762,0.05,82136.0,82135.0,0.3726316]
[1743688095967,0.05,82136.0,82135.0,0.39478069]
[1743688096677,0.05,82136.0,82135.0,0.56442069]
[1743688096823,0.05,82136.0,82135.0,0.61171499]
[1743688097031,1.0512,82160.0,82159.0,0.255601]
[1743688097232,1.1812,82160.0,82159.0,0.25573939]
[1743688097484,0.13,82160.0,82159.0,0.25573939]
[1743688097841,0.13,82160.0,82159.0,0.00013839]
[1743688098049,0.13,82160.0,82159.0,0.01991763]
[1743688098249,0.13,82160.0,82159.0,0.13667323]
[1743688098446,0.13,82160.0,82159.0,0.15121408]
[1743688098853,0.13,82160.0,82159.0,0.54024811]
[1743688099055,0.0003372,82164.0,82163.0,0.01217]
[1743688099256,0.0003372,82164.0,82163.0,0.38931794]
[1743688099483,0.0003372,82164.0,82163.0,0.38688445]
[1743688099830,0.0103372,82164.0,82163.0,0.14346645]
[1743688100033,0.0103372,82164.0,82163.0,0.00760824]
[1743688100202,0.0225072,82164.0,82163.0,0.00760824]
[1743688101580,0.0103372,82164.0,82163.0,0.39449269]
[1743688101801,0.0103372,82164.0,82163.0,0.72786605]
[1743688102002,0.243314,82198.0,82188.0,0.012167]
[1743688102200,0.13,82198.0,82189.0,0.24334]
[1743688102545,0.243338,82190.0,82184.0,0.012167]
[1743688102744,0.06,82190.0,82186.0,0.24335]
[1743688102918,0.243366,82181.0,82173.0,0.012169]
[1743688103147,0.243366,82181.0,82170.0,0.181729]
[1743688103148,0.243374,82178.0,82170.0,0.16956]
[1743688103345,0.293374,82178.0,82170.0,0.16956]
[1743688103478,0.012168,82177.0,82176.0,0.00774663]
[1743688103681,0.072168,82177.0,82176.0,0.00774663]
[1743688103880,0.5289236,82177.0,82176.0,0.00774663]
[1743688104079,0.5289236,82177.0,82176.0,6.3e-07]
[1743688104278,0.56670678,82177.0,82176.0,6.3e-07]
[1743688104906,0.255654,82142.0,82141.0,0.0001686]
[1743688105107,0.495654,82142.0,82141.0,0.0001686]
[1743688105516,0.495614,82142.0,82141.0,0.0001686]
[1743688105926,0.9523696,82142.0,82141.0,0.0001686]
[1743688106207,2.00388758,82142.0,82141.0,0.0001686]
[1743688106398,1.88713198,82142.0,82141.0,0.0001686]
[1743688106918,2.00388758,82142.0,82141.0,0.0001686]
[1743688107132,0.59566,82140.0,82139.0,1.4e-07]
[1743688107330,1.0201681,82140.0,82139.0,1.4e-07]
[1743688107611,0.9823756,82140.0,82139.0,1.4e-07]
[1743688108213,0.86562,82140.0,82139.0,1.4e-07]
[1743688108397,0.595672,82136.0,82135.0,0.0002]
[1743688108729,0.865672,82136.0,82135.0,0.0002]
[1743688108974,0.513498,82136.0,82135.0,0.0002]
[1743688109803,0.27,82136.0,82135.0,0.0002]
[1743688110357,0.27,82136.0,82135.0,0.13149645]
[1743688110556,0.282174,82136.0,82135.0,0.0002]
[1743688111204,0.282174,82136.0,82135.0,0.00024]
[1743688111864,0.27,82136.0,82135.0,0.00024]
[1743688112643,0.282174,82136.0,82135.0,0.00024]
[1743688112846,0.282174,82136.0,82135.0,0.0004086]
[1743688113321,0.27,82136.0,82135.0,0.1171642]
[1743688113521,0.27,82136.0,82135.0,0.14388005]
[1743688114098,0.27,82136.0,82135.0,0.0004086]
[1743688114235,0.27,82136.0,82135.0,0.1293392]
[1743688114692,0.27,82136.0,82135.0,0.0004086]
[1743688115382,0.525672,82136.0,82135.0,0.0004086]
[1743688115825,0.27,82136.0,82135.0,0.3728402]
[1743688115826,0.27,82136.0,82135.0,0.38738105]
[1743688116013,0.27,82136.0,82135.0,0.77458105]
[1743688116223,0.00011798,82142.0,82141.0,0.61019785]
[1743688116428,0.00011798,82142.0,82141.0,0.89651345]
[1743688117044,0.0003372,82160.0,82141.0,0.89651345]
[1743688117045,0.0003372,82160.0,82159.0,0.255601]
[1743688117266,0.0103372,82160.0,82159.0,0.38689745]
[1743688117827,0.0103372,82160.0,82155.0,0.012172]
[1743688118051,0.0103372,82160.0,82155.0,0.1167556]
[1743688118210,0.243477,82144.0,82141.0,0.01154759]
[1743688118583,0.01,82144.0,82143.0,0.25565]
[1743688118768,0.01,82144.0,82143.0,0.1289286]
[1743688118971,0.01,82144.0,82143.0,0.14590393]
[1743688119179,0.01,82144.0,82143.0,0.14346945]